bitfinex/quotes_BTCUSD_20240728
["timestamp","ask_amount","ask_price","bid_price","bid_amount"]
[1722135635456,0.08598185,68282.0,68281.0,0.924037]
[1722135635642,0.09363465,68282.0,68281.0,0.924037]
[1722135635835,0.08598185,68282.0,68281.0,0.924037]
[1722135637391,0.08598185,68282.0,68281.0,1.47642157]
[1722135637765,0.08598185,68282.0,68281.0,1.59811731]
[1722135637969,0.08598185,68282.0,68281.0,1.47642157]
[1722135638776,0.10896384,68282.0,68281.0,1.47642157]
[1722135640339,0.08598185,68282.0,68281.0,1.47642157]
[1722135643532,0.10896367,68282.0,68281.0,1.47642157]
[1722135644363,0.08598185,68282.0,68281.0,1.47642157]
[1722135647761,0.10896376,68282.0,68281.0,1.47642157]
[1722135648864,0.08598185,68282.0,68281.0,1.47642157]
[1722135652127,0.10896376,68282.0,68281.0,1.47642157]
[1722135652479,0.08598185,68282.0,68281.0,1.47642157]
[1722135653375,0.08598185,68282.0,68281.0,1.33162157]
[1722135653576,0.08598185,68282.0,68281.0,1.181362]
[1722135653577,0.16618185,68282.0,68281.0,1.181362]
[1722135655893,0.18916392,68282.0,68281.0,1.181362]
[1722135656363,0.19598952,68282.0,68281.0,1.181362]
[1722135657937,0.19598952,68282.0,68281.0,0.613812]
[1722135657938,0.25928952,68282.0,68281.0,0.613812]
[1722135658549,0.25928952,68282.0,68281.0,0.379487]
[1722135658550,0.27851581,68282.0,68281.0,0.379487]
[1722135658931,0.27894653,68282.0,68281.0,0.379487]
[1722135659137,0.27894716,68282.0,68281.0,0.351487]
[1722135659346,0.25928952,68282.0,68281.0,0.373487]
[1722135660764,0.27896639,68282.0,68281.0,0.373487]
[1722135661806,0.25928952,68282.0,68281.0,0.373487]
[1722135664102,0.25928952,68282.0,68281.0,0.607812]
[1722135664535,0.27897833,68282.0,68281.0,0.607812]
[1722135664745,0.25928952,68282.0,68281.0,0.607812]
[1722135666510,0.25928952,68282.0,68281.0,0.373487]
[1722135667352,0.25928952,68282.0,68281.0,0.139162]
[1722135667559,0.27880983,68282.0,68281.0,0.022]
[1722135667737,0.25928952,68282.0,68281.0,0.139162]
[1722135667931,0.27880877,68282.0,68281.0,0.139162]
[1722135668243,0.20096747,68282.0,68281.0,0.139162]
[1722135668451,0.27851186,68282.0,68281.0,0.139162]
[1722135668700,0.25899261,68282.0,68281.0,0.139162]
[1722135669003,0.27814341,68282.0,68281.0,0.139162]
[1722135670651,0.27814341,68282.0,68281.0,0.373487]
[1722135671059,0.27806573,68282.0,68281.0,0.373487]
[1722135672297,0.27818763,68282.0,68281.0,0.373487]
[1722135672689,0.25520556,68282.0,68281.0,0.373487]
[1722135674379,0.37236656,68282.0,68281.0,0.022924]
[1722135674601,0.60657367,68282.0,68281.0,0.022924]
[1722135675119,0.84089567,68282.0,68281.0,0.022924]
[1722135675320,0.84089567,68282.0,68281.0,0.011924]
[1722135675321,0.60657351,68282.0,68281.0,0.011924]
[1722135675896,0.60657351,68282.0,68281.0,0.016924]
[1722135676084,0.62955892,68282.0,68281.0,0.016924]
[1722135676314,0.62955892,68282.0,68281.0,0.011924]
[1722135676633,0.63155892,68282.0,68281.0,0.000924]
[1722135677049,0.28007592,68282.0,68281.0,0.000924]
[1722135677460,0.25909051,68282.0,68281.0,0.000924]
[1722135678675,0.25934698,68282.0,68281.0,0.000924]
[1722135680630,0.25868794,68282.0,68281.0,0.000924]
[1722135680887,0.28139664,68282.0,68281.0,0.000924]
[1722135682118,0.25848383,68282.0,68281.0,0.000924]
[1722135682369,0.239075,68282.0,68281.0,0.000924]
[1722135682617,0.25862595,68282.0,68281.0,0.000924]
[1722135685047,0.25722631,68282.0,68281.0,0.000924]
[1722135685277,0.25719069,68282.0,68281.0,0.000924]
[1722135686715,0.28017598,68282.0,68281.0,0.000924]
[1722135686943,0.25719069,68282.0,68281.0,0.000924]
[1722135688420,0.25719069,68282.0,68281.0,0.118086]
[1722135688655,0.25727704,68282.0,68281.0,0.118086]
[1722135689811,0.28026216,68282.0,68281.0,0.118086]
[1722135690060,0.25727704,68282.0,68281.0,0.118086]
[1722135691942,0.25728861,68282.0,68281.0,0.118086]
[1722135692423,0.23767536,68282.0,68281.0,0.118086]
[1722135692651,0.25720015,68282.0,68281.0,0.118086]
[1722135693385,0.28018522,68282.0,68281.0,0.000924]
[1722135694534,0.25720015,68282.0,68281.0,0.000924]
[1722135695226,0.25716011,68282.0,68281.0,0.000924]
[1722135698559,0.25718822,68282.0,68281.0,0.000924]
[1722135700689,0.34507098,68282.0,68281.0,0.000924]
[1722135701619,0.23767536,68282.0,68281.0,0.000924]
[1722135701824,0.28018388,68282.0,68281.0,0.000924]
[1722135702027,0.36808152,68282.0,68281.0,0.000924]
[1722135702235,0.34509482,68282.0,68281.0,0.000924]
[1722135702678,0.25719752,68282.0,68281.0,0.000924]
[1722135703645,0.36706915,68282.0,68281.0,0.000924]
[1722135704023,0.34754699,68282.0,68281.0,0.000924]
[1722135704233,0.36697313,68282.0,68281.0,0.000924]
[1722135705008,0.34760454,68282.0,68281.0,0.000924]
[1722135705213,0.36702236,68282.0,68281.0,0.000924]
[1722135705396,0.39000765,68282.0,68281.0,0.000924]
[1722135706672,0.50716865,68282.0,68281.0,0.000924]
[1722135706797,0.48418336,68282.0,68281.0,0.000924]
[1722135707856,0.37425418,68282.0,68281.0,0.000924]
[1722135708344,0.37421768,68282.0,68281.0,0.000924]
[1722135709972,0.39720264,68282.0,68281.0,0.000924]
[1722135710367,0.37421768,68282.0,68281.0,0.000924]
[1722135711564,0.35483636,68282.0,68281.0,0.000924]
[1722135711763,0.37402936,68282.0,68281.0,0.000924]
[1722135713634,0.39701436,68282.0,68281.0,0.000924]
[1722135713894,0.86565836,68282.0,68281.0,0.000924]
[1722135714106,0.89630988,68282.0,68281.0,0.000924]
[1722135714310,1.13063188,68282.0,68281.0,0.000924]
[1722135714514,1.27908625,68282.0,68281.0,0.000924]
[1722135714666,1.13063188,68282.0,68281.0,0.000924]
[1722135714860,1.13102906,68282.0,68281.0,0.000924]
[1722135715426,1.12902906,68282.0,68281.0,0.000924]
[1722135715637,1.27928863,68282.0,68281.0,0.000924]
[1722135715836,1.28628863,68282.0,68281.0,0.001924]
[1722135716032,1.43472508,68282.0,68281.0,0.001924]
[1722135716324,1.43272508,68282.0,68281.0,0.001924]
[1722135716500,1.29128863,68282.0,68281.0,0.002924]
[1722135716700,1.53969732,68282.0,68281.0,0.002924]
[1722135717075,1.53969732,68282.0,68281.0,0.001924]
[1722135717076,1.53269732,68282.0,68281.0,0.001924]
[1722135717272,1.5626852,68282.0,68281.0,0.002924]
[1722135717434,1.41242563,68282.0,68281.0,0.002924]
[1722135717637,1.41240111,68282.0,68281.0,0.002924]
[1722135718069,1.2642712,68282.0,68281.0,0.002924]
[1722135718272,1.41265674,68282.0,68281.0,0.002924]
[1722135718475,1.38966886,68282.0,68281.0,0.002924]
[1722135718680,1.24128332,68282.0,68281.0,0.002924]
[1722135718891,1.38965146,68282.0,68281.0,0.002924]
[1722135719307,1.24128332,68282.0,68281.0,0.002924]
[1722135721534,1.24120935,68282.0,68281.0,0.002924]
[1722135721747,1.26419766,68282.0,68281.0,0.002924]
[1722135722326,1.41445723,68282.0,68281.0,0.002924]
[1722135722711,1.49851966,68282.0,68281.0,0.002924]
[1722135722922,1.47553135,68282.0,68281.0,0.002924]
[1722135723520,1.47533718,68282.0,68281.0,0.002924]
[1722135723724,1.62364367,68282.0,68281.0,0.002924]
[1722135724099,1.47533911,68282.0,68281.0,0.002924]
[1722135724887,1.62559868,68282.0,68281.0,0.002924]
[1722135725295,1.47533911,68282.0,68281.0,0.002924]
[1722135726040,1.49832753,68282.0,68281.0,0.002924]
[1722135726477,1.40212436,68282.0,68281.0,0.002924]
[1722135726636,1.4755736,68282.0,68281.0,0.002924]
[1722135726853,1.47549393,68282.0,68281.0,0.002924]
[1722135727069,1.37294454,68282.0,68281.0,0.002924]
[1722135727283,1.24117193,68282.0,68281.0,0.002924]
[1722135727501,1.31707193,68282.0,68281.0,0.002924]
[1722135727721,1.26316534,68282.0,68281.0,0.002924]
[1722135727944,1.02884334,68282.0,68281.0,0.002924]
[1722135728159,1.08231156,68282.0,68281.0,0.002924]
[1722135729593,1.1052992,68282.0,68281.0,0.002924]
[1722135730205,1.10492532,68282.0,68281.0,0.002924]
[1722135730766,1.08193769,68282.0,68281.0,0.002924]
[1722135731755,0.93843769,68282.0,68281.0,0.002924]
[1722135732509,0.93454738,68282.0,68281.0,0.002924]
[1722135733538,0.93461846,68282.0,68281.0,0.002924]
[1722135733941,0.95760598,68282.0,68281.0,0.002924]
[1722135735214,0.93461846,68282.0,68281.0,0.002924]
[1722135736818,0.93451794,68282.0,68281.0,0.002924]
[1722135737759,0.93417467,68282.0,68281.0,0.002924]
[1722135738528,0.95716219,68282.0,68281.0,0.002924]
[1722135738731,0.93417467,68282.0,68281.0,0.002924]
[1722135740151,0.93412612,68282.0,68281.0,0.002924]
[1722135740722,0.93397967,68282.0,68281.0,0.002924]
[1722135742106,0.95696719,68282.0,68281.0,0.002924]
[1722135743329,0.88448785,68282.0,68281.0,0.002924]
[1722135743506,0.95699189,68282.0,68281.0,0.002924]
[1722135745958,0.93400437,68282.0,68281.0,0.002924]
[1722135746903,0.93382476,68282.0,68281.0,0.002924]
[1722135748201,1.14785251,68282.0,68281.0,0.002924]
[1722135749168,1.15207086,68282.0,68281.0,0.002924]
[1722135749378,1.47468038,68282.0,68281.0,0.002924]
[1722135749579,1.31986511,68282.0,68281.0,0.002924]
[1722135750007,1.31985904,68282.0,68281.0,0.002924]
[1722135750250,1.08553704,68282.0,68281.0,0.002924]
[1722135752888,1.10852447,68282.0,68281.0,0.002924]
[1722135753247,1.10841329,68282.0,68281.0,0.002924]
[1722135754041,1.08542586,68282.0,68281.0,0.002924]
[1722135755512,0.78580386,68282.0,68281.0,0.002924]
[1722135755849,0.70360386,68282.0,68281.0,0.002924]
[1722135756365,0.65010857,68282.0,68281.0,0.002924]
[1722135756572,0.70329668,68282.0,68281.0,0.002924]
[1722135758876,0.72628386,68282.0,68281.0,0.002924]
[1722135759121,0.70329668,68282.0,68281.0,0.002924]
[1722135759758,0.70344897,68282.0,68281.0,0.002924]
[1722135760116,0.70329814,68282.0,68281.0,0.002924]
[1722135761928,0.72628553,68282.0,68281.0,0.002924]
[1722135762129,0.72718872,68282.0,68281.0,0.002924]
[1722135762331,0.72628553,68282.0,68281.0,0.002924]
[1722135762739,0.70329814,68282.0,68281.0,0.002924]
[1722135762939,0.63139668,68282.0,68281.0,0.002924]
[1722135763143,0.70265161,68282.0,68281.0,0.002924]
[1722135765981,0.959961,68282.0,68281.0,0.002924]
[1722135766208,0.94157951,68282.0,68281.0,0.002924]
[1722135766376,0.93649425,68282.0,68281.0,0.002924]
[1722135769442,0.86571868,68282.0,68281.0,0.002924]
[1722135769637,0.93638321,68282.0,68281.0,0.002924]
[1722135769814,1.03437061,68282.0,68281.0,0.002924]
[1722135770847,1.07568321,68282.0,68281.0,0.002924]
[1722135772249,1.22417878,68282.0,68281.0,0.002924]
[1722135772674,1.15351425,68282.0,68281.0,0.002924]
[1722135772845,1.22359695,68282.0,68281.0,0.002924]
[1722135774075,1.24658439,68282.0,68281.0,0.002924]
[1722135775463,1.22359695,68282.0,68281.0,0.002924]
[1722135775863,1.07510138,68282.0,68281.0,0.002924]
[1722135776269,1.07388783,68282.0,68281.0,0.002924]
[1722135776444,0.77526583,68282.0,68281.0,0.002924]
[1722135777004,1.00958783,68282.0,68281.0,0.002924]
[1722135778683,1.03257527,68282.0,68281.0,0.002924]
[1722135779289,1.03297619,68282.0,68281.0,0.002924]
[1722135779855,1.032976,68282.0,68281.0,0.002924]
[1722135781726,1.15899471,68282.0,68281.0,0.002924]
[1722135782568,1.30755772,68282.0,68281.0,0.002924]
[1722135782738,1.15899471,68282.0,68281.0,0.002924]
[1722135783535,1.15251238,68282.0,68281.0,0.002924]
[1722135784297,1.02653839,68282.0,68281.0,0.002924]
[1722135785683,0.95153839,68282.0,68281.0,0.002924]
[1722135785895,0.5648436,68282.0,68281.0,0.002924]
[1722135786084,0.63637281,68282.0,68281.0,0.002924]
[1722135787776,0.61338537,68282.0,68281.0,0.002924]
[1722135788178,0.61424186,68282.0,68281.0,0.002924]
[1722135788876,0.61641929,68282.0,68281.0,0.002924]
[1722135791344,0.63940639,68282.0,68281.0,0.002924]
[1722135791639,0.63932746,68282.0,68281.0,0.002924]
[1722135791934,0.5692353,68282.0,68281.0,0.002924]
[1722135792135,0.61634036,68282.0,68281.0,0.002924]
[1722135793479,0.61634036,68282.0,68281.0,0.268986]
[1722135793480,0.26485736,68282.0,68281.0,0.268986]
[1722135793651,0.39688093,68282.0,68281.0,0.151824]
[1722135793852,0.39688093,68282.0,68281.0,0.268986]
[1722135794089,0.26485736,68282.0,68281.0,0.268986]
[1722135794294,0.39688093,68282.0,68281.0,0.268986]
[1722135794501,0.26485736,68282.0,68281.0,0.151824]
[1722135794896,0.26478842,68282.0,68281.0,0.268986]
[1722135795085,0.39680156,68282.0,68281.0,0.268986]
[1722135795229,0.26478842,68282.0,68281.0,0.268986]
[1722135796477,0.26478842,68282.0,68281.0,0.151824]
[1722135798202,0.1947652,68282.0,68281.0,0.151824]
[1722135798403,0.16484049,68282.0,68281.0,0.151824]
[1722135798608,0.26484049,68282.0,68281.0,0.151824]
[1722135799255,0.28782712,68282.0,68281.0,0.151824]
[1722135800537,0.28770712,68282.0,68281.0,0.151824]
[1722135801632,0.28763071,68282.0,68281.0,0.151824]
[1722135802075,0.28763021,68282.0,68281.0,0.151824]
[1722135802648,0.28761378,68282.0,68281.0,0.151824]
[1722135803860,0.23535255,68282.0,68281.0,0.151824]
[1722135804377,0.26460617,68282.0,68281.0,0.151824]
[1722135804585,0.21236592,68282.0,68281.0,0.151824]
[1722135805024,0.2646076,68282.0,68281.0,0.151824]
[1722135805381,0.1646076,68282.0,68281.0,0.503311]
[1722135805607,0.1646076,68282.0,68281.0,0.971961]
[1722135805608,0.2223256,68282.0,68281.0,0.971961]
[1722135805783,0.11236592,68282.0,68281.0,0.971961]
[1722135805994,0.0946452,68282.0,68281.0,0.971961]
[1722135806705,0.0876452,68282.0,68281.0,0.970961]
[1722135806886,0.08824779,68282.0,68281.0,0.975961]
[1722135807515,0.08124779,68282.0,68281.0,0.969961]
[1722135807661,0.08124779,68282.0,68281.0,0.974961]
[1722135807861,0.10423278,68282.0,68281.0,0.974961]
[1722135808061,0.10423278,68282.0,68281.0,0.969961]
[1722135808280,0.10523278,68282.0,68281.0,0.982961]
[1722135808653,0.03192355,68282.0,68281.0,0.994961]
[1722135808891,0.00893856,68282.0,68281.0,0.994961]
[1722135809070,0.00793856,68282.0,68281.0,0.982961]
[1722135809448,0.00793856,68282.0,68281.0,0.994961]
[1722135810700,0.00793856,68282.0,68281.0,1.00357904]
[1722135812140,0.03092263,68282.0,68281.0,1.00357904]
[1722135813450,0.00793856,68282.0,68281.0,1.00357904]
[1722135816850,0.03092263,68282.0,68281.0,1.23790404]
[1722135817815,0.00793856,68282.0,68281.0,1.23790404]
[1722135820869,0.03092235,68282.0,68281.0,1.23790404]
[1722135822611,0.00793856,68282.0,68281.0,1.23790404]
[1722135830142,0.03092222,68282.0,68281.0,1.23790404]
[1722135831400,0.00793856,68282.0,68281.0,1.23790404]
[1722135834522,0.03092222,68282.0,68281.0,1.23790404]
[1722135837039,0.00793856,68282.0,68281.0,1.23790404]
[1722135840483,0.03092222,68282.0,68281.0,1.23790404]
[1722135840685,0.00793856,68282.0,68281.0,1.23790404]
[1722135843523,0.08274455,68282.0,68281.0,1.23790404]
[1722135844159,0.10572817,68282.0,68281.0,1.23790404]
[1722135847510,0.08274455,68282.0,68281.0,1.23790404]
[1722135849631,0.00793856,68282.0,68281.0,1.23790404]
[1722135852267,0.03092309,68282.0,68281.0,1.23790404]
[1722135852659,0.00793856,68282.0,68281.0,1.47222904]
[1722135855334,0.03092111,68282.0,68281.0,1.47222904]
[1722135856438,0.00793856,68282.0,68281.0,1.47222904]
[1722135858439,0.00793856,68282.0,68281.0,1.23790404]
[1722135859642,0.03092132,68282.0,68281.0,1.23790404]
[1722135860781,0.03007189,68282.0,68281.0,1.23790404]
[1722135868431,0.00708913,68282.0,68281.0,1.23790404]
[1722135873118,0.03007189,68282.0,68281.0,1.23790404]
[1722135873362,0.00708913,68282.0,68281.0,1.23790404]
[1722135873477,0.00708913,68282.0,68281.0,1.17180404]
[1722135874948,0.00708913,68282.0,68281.0,0.85467904]
[1722135875121,0.14538913,68282.0,68281.0,0.93057904]
[1722135875324,0.21936445,68282.0,68281.0,0.93057904]
[1722135875526,0.21936445,68282.0,68281.0,0.921961]
[1722135875724,0.23500572,68282.0,68281.0,0.921961]
[1722135875978,0.21936445,68282.0,68281.0,0.921961]
[1722135876169,0.24234802,68282.0,68281.0,0.921961]
[1722135876470,0.14538913,68282.0,68281.0,0.909961]
[1722135876775,0.14438913,68282.0,68281.0,0.896961]
[1722135876886,0.14538913,68282.0,68281.0,0.905961]
[1722135878305,0.14638913,68282.0,68281.0,0.913961]
[1722135879731,0.16937261,68282.0,68281.0,0.913961]
[1722135884299,0.2425655,68282.0,68281.0,0.913961]
[1722135888482,0.2425655,68282.0,68281.0,0.603736]
[1722135888658,0.25818412,68282.0,68281.0,0.603736]
[1722135889184,0.25818733,68282.0,68281.0,0.603736]
[1722135892237,0.2425655,68282.0,68281.0,0.603736]
[1722135892393,0.25797226,68282.0,68281.0,0.603736]
[1722135895184,0.25797226,68282.0,68281.0,0.135086]
[1722135895613,0.25817341,68282.0,68281.0,0.135086]
[1722135897621,0.25817341,68282.0,68281.0,0.369411]
[1722135898972,0.2582132,68282.0,68281.0,0.369411]
[1722135901299,0.2425655,68282.0,68281.0,0.369411]
[1722135901500,0.25819232,68282.0,68281.0,0.369411]
[1722135901719,0.2425655,68282.0,68281.0,0.369411]
[1722135901899,0.2425655,68282.0,68281.0,0.603736]
[1722135901900,0.25819232,68282.0,68281.0,0.603736]
[1722135903422,0.25819232,68282.0,68281.0,0.017924]
[1722135903623,0.84387983,68282.0,68281.0,0.017924]
[1722135904237,1.12834313,68282.0,68281.0,0.017924]
[1722135904452,1.12827363,68282.0,68281.0,0.009924]
[1722135904653,1.12827363,68282.0,68281.0,0.012924]
[1722135904855,1.10529015,68282.0,68281.0,0.012924]
[1722135905306,1.10529015,68282.0,68281.0,0.009924]
[1722135905719,1.10929015,68282.0,68281.0,0.000924]
[1722135906128,1.11429015,68282.0,68281.0,0.000924]
[1722135907462,1.11461069,68282.0,68281.0,0.000924]
[1722135907659,1.16536041,68282.0,68281.0,0.000924]
[1722135907863,1.18151234,68282.0,68281.0,0.000924]
[1722135908083,1.20449965,68282.0,68281.0,0.000924]
[1722135908288,0.97017765,68282.0,68281.0,0.000924]
[1722135909436,0.91942793,68282.0,68281.0,0.000924]
[1722135909640,0.89644062,68282.0,68281.0,0.000924]
[1722135910222,1.00615411,68282.0,68281.0,0.000924]
[1722135911000,0.82953895,68282.0,68281.0,0.000924]
[1722135911225,0.93925387,68282.0,68281.0,0.000924]
[1722135911436,0.9392424,68282.0,68281.0,0.000924]
[1722135911990,0.93928163,68282.0,68281.0,0.000924]
[1722135912780,0.96226873,68282.0,68281.0,0.000924]
[1722135913182,0.82957662,68282.0,68281.0,0.000924]
[1722135914210,0.81338702,68282.0,68281.0,0.000924]
[1722135914411,0.82950086,68282.0,68281.0,0.000924]
[1722135915386,0.93919209,68282.0,68281.0,0.000924]
[1722135915625,0.82950086,68282.0,68281.0,0.000924]
[1722135915827,0.93919209,68282.0,68281.0,0.000924]
[1722135916034,0.82950086,68282.0,68281.0,0.000924]
[1722135916436,0.85248804,68282.0,68281.0,0.000924]
[1722135916832,0.82950086,68282.0,68281.0,0.000924]
[1722135917451,0.81338702,68282.0,68281.0,0.000924]
[1722135917658,0.82941623,68282.0,68281.0,0.000924]
[1722135919786,0.93910051,68282.0,68281.0,0.000924]
[1722135920003,0.98971536,68282.0,68281.0,0.000924]
[1722135920796,0.88003108,68282.0,68281.0,0.000924]
[1722135921080,0.9895757,68282.0,68281.0,0.000924]
[1722135921286,0.81338702,68282.0,68281.0,0.000924]
[1722135921517,0.98956942,68282.0,68281.0,0.000924]
[1722135922044,0.87987211,68282.0,68281.0,0.000924]
[1722135922765,1.11419411,68282.0,68281.0,0.000924]
[1722135922966,0.87987211,68282.0,68281.0,0.000924]
[1722135923180,1.11419411,68282.0,68281.0,0.000924]
[1722135923387,1.21419411,68282.0,68281.0,0.000924]
[1722135923991,1.14770902,68282.0,68281.0,0.000924]
[1722135924190,1.21373722,68282.0,68281.0,0.000924]
[1722135924595,1.37815948,68282.0,68281.0,0.000924]
[1722135925862,1.509783,68282.0,68281.0,0.000924]
[1722135926050,1.37815948,68282.0,68281.0,0.000924]
[1722135927253,1.37849573,68282.0,68281.0,0.000924]
[1722135927415,1.51010456,68282.0,68281.0,0.000924]
[1722135927617,1.37849573,68282.0,68281.0,0.000924]
[1722135928121,1.3555072,68282.0,68281.0,0.000924]
[1722135928337,1.487114,68282.0,68281.0,0.000924]
[1722135928733,1.3555072,68282.0,68281.0,0.000924]
[1722135929209,1.35179651,68282.0,68281.0,0.000924]
[1722135929860,1.44468478,68282.0,68281.0,0.000924]
[1722135930063,1.46768478,68282.0,68281.0,0.000924]
[1722135930632,1.41199016,68282.0,68281.0,0.000924]
[1722135930896,1.45728918,68282.0,68281.0,0.000924]
[1722135931081,1.45729037,68282.0,68281.0,0.000924]
[1722135931273,1.60754994,68282.0,68281.0,0.000924]
[1722135931481,1.60754994,68282.0,68281.0,0.001924]
[1722135931482,1.84987194,68282.0,68281.0,0.001924]
[1722135931722,1.87286386,68282.0,68281.0,0.001924]
[1722135931893,1.89174727,68282.0,68281.0,0.001924]
[1722135932663,1.89174727,68282.0,68281.0,0.002924]
[1722135932664,1.90574727,68282.0,68281.0,0.002924]
[1722135932837,1.88374727,68282.0,68281.0,0.000924]
[1722135933130,1.91174727,68282.0,68281.0,0.000924]
[1722135933270,1.05448,68280.0,68279.0,0.000924]
[1722135933475,1.60826203,68280.0,68279.0,0.000924]
[1722135933681,1.6269307,68280.0,68279.0,0.000924]
[1722135933880,1.8612597,68280.0,68279.0,0.000924]
[1722135934517,1.8752597,68280.0,68279.0,0.000924]
[1722135934723,2.02551927,68280.0,68279.0,0.000924]
[1722135935584,2.02551927,68280.0,68249.0,0.117217]
[1722135935585,0.351652,68249.0,68247.0,0.1416]
[1722135935807,0.43671107,68249.0,68247.0,0.0758]
[1722135935987,0.45548968,68249.0,68247.0,0.0758]
[1722135936381,0.22105468,68249.0,68247.0,0.0758]
[1722135936749,0.20647781,68249.0,68247.0,0.0758]
[1722135936946,0.22188771,68249.0,68247.0,0.0758]
[1722135937197,0.22088771,68249.0,68247.0,0.0758]
[1722135937398,0.22688771,68249.0,68248.0,0.001924]
[1722135937601,0.23088771,68249.0,68248.0,0.001924]
[1722135939421,0.81474771,68249.0,68248.0,0.001924]
[1722135939622,1.20208914,68249.0,68248.0,0.001924]
[1722135939802,1.25218109,68249.0,68248.0,0.001924]
[1722135940177,1.36178791,68249.0,68248.0,0.001924]
[1722135940397,1.25218109,68249.0,68248.0,0.001924]
[1722135940609,1.33693881,68249.0,68248.0,0.001924]
[1722135940817,1.40342483,68249.0,68248.0,0.001924]
[1722135942335,1.35286768,68249.0,68248.0,0.001924]
[1722135943029,1.40335563,68249.0,68248.0,0.001924]
[1722135943799,1.39935563,68249.0,68248.0,0.001924]
[1722135944209,1.39335563,68249.0,68248.0,0.000924]
[1722135944473,1.35686768,68249.0,68248.0,0.000924]
[1722135945906,1.37086768,68249.0,68248.0,0.000924]
[1722135946477,1.35493881,68249.0,68248.0,0.000924]
[1722135946795,1.37081509,68249.0,68248.0,0.000924]
[1722135947065,1.34781866,68249.0,68248.0,0.000924]
[1722135948611,1.42371866,68249.0,68248.0,0.000924]
[1722135950063,1.44665752,68249.0,68248.0,0.000924]
[1722135950367,1.43084171,68249.0,68248.0,0.000924]
[1722135950515,1.44665726,68249.0,68248.0,0.000924]
[1722135951957,1.42365793,68249.0,68248.0,0.000924]
[1722135954255,1.47414244,68249.0,68248.0,0.000924]
[1722135954580,1.42365793,68249.0,68248.0,0.000924]
[1722135954755,1.47413611,68249.0,68248.0,0.000924]
[1722135956450,1.47416267,68249.0,68248.0,0.000924]
[1722135957248,1.47416267,68249.0,68248.0,0.080124]
[1722135957249,0.34932095,68249.0,68248.0,0.080124]
[1722135957454,0.34932095,68249.0,68248.0,0.141024]
[1722135957655,0.58375595,68249.0,68248.0,0.141024]
[1722135958176,0.81819095,68249.0,68248.0,0.141024]
[1722135958752,0.80419095,68249.0,68248.0,0.141024]
[1722135959734,0.93379694,68249.0,68248.0,0.080124]
[1722135959925,0.94914415,68249.0,68248.0,0.080124]
[1722135960330,0.93514418,68249.0,68248.0,0.080124]
[1722135960731,0.92414594,68249.0,68248.0,0.081124]
[1722135962023,0.9087987,68249.0,68248.0,0.081124]
[1722135962246,0.92416859,68249.0,68248.0,0.081124]
[1722135962983,0.8127177,68249.0,68248.0,0.081124]
[1722135963332,0.86276929,68249.0,68248.0,0.081124]
[1722135963948,0.88576753,68249.0,68248.0,0.081124]
[1722135964153,0.86276929,68249.0,68248.0,0.081124]
[1722135964469,0.39389929,68249.0,68248.0,0.081124]
[1722135964880,0.27668229,68249.0,68248.0,0.081124]
[1722135965079,0.44087902,68249.0,68248.0,0.081124]
[1722135965278,0.37545754,68249.0,68248.0,0.081124]
[1722135965520,0.67524043,68249.0,68248.0,0.081124]
[1722135967449,0.93267367,68249.0,68248.0,0.081124]
[1722135967652,0.93267367,68249.0,68248.0,0.001924]
[1722135967849,0.90967543,68249.0,68248.0,0.001924]
[1722135968475,0.84432754,68249.0,68248.0,0.001924]
[1722135968673,0.90933872,68249.0,68248.0,0.001924]
[1722135971254,0.93233713,68249.0,68248.0,0.001924]
[1722135972055,0.93097119,68249.0,68248.0,0.001924]
[1722135972469,0.86732595,68249.0,68248.0,0.001924]
[1722135972818,0.93097119,68249.0,68248.0,0.001924]
[1722135973288,0.90797278,68249.0,68248.0,0.001924]
[1722135974202,0.83221015,68249.0,68248.0,0.001924]
[1722135974437,0.89583888,68249.0,68248.0,0.001924]
[1722135974767,1.00555265,68249.0,68248.0,0.001924]
[1722135975173,0.94192392,68249.0,68248.0,0.001924]
[1722135975375,0.89576298,68249.0,68248.0,0.001924]
[1722135976363,0.91876139,68249.0,68248.0,0.001924]
[1722135977482,0.89576298,68249.0,68248.0,0.001924]
[1722135978656,0.84657071,68249.0,68248.0,0.001924]
[1722135978854,0.89563198,68249.0,68248.0,0.001924]
[1722135979425,1.02743861,68249.0,68248.0,0.001924]
[1722135980379,0.89563198,68249.0,68248.0,0.001924]
[1722135980734,0.91863039,68249.0,68248.0,0.001924]
[1722135980941,0.89563198,68249.0,68248.0,0.001924]
[1722135981939,0.89559808,68249.0,68248.0,0.001924]
[1722135982347,0.89562015,68249.0,68248.0,0.001924]
[1722135982661,1.21135515,68249.0,68248.0,0.001924]
[1722135982821,1.27185515,68249.0,68248.0,0.001924]
[1722135983022,1.42028335,68249.0,68248.0,0.001924]
[1722135983248,1.27185515,68249.0,68248.0,0.001924]
[1722135984475,1.29485441,68249.0,68248.0,0.001924]
[1722135985281,1.29515629,68249.0,68248.0,0.001924]
[1722135985556,1.27215703,68249.0,68248.0,0.001924]
[1722135988328,1.20844515,68249.0,68248.0,0.001924]
[1722135988530,1.27183993,68249.0,68248.0,0.001924]
[1722135988728,1.29483945,68249.0,68248.0,0.001924]
[1722135990187,1.27183993,68249.0,68248.0,0.001924]
[1722135991184,1.50627493,68249.0,68248.0,0.001924]
[1722135991797,1.50589562,68249.0,68248.0,0.001924]
[1722135992256,1.50589572,68249.0,68248.0,0.001924]
[1722135994808,1.44288015,68249.0,68248.0,0.001924]
[1722135995066,1.50394255,68249.0,68248.0,0.001924]
[1722135996153,1.52694255,68249.0,68248.0,0.001924]
[1722135996906,1.54994302,68249.0,68248.0,0.001924]
[1722135998186,1.54948206,68249.0,68248.0,0.001924]
[1722136001333,1.50170986,68249.0,68248.0,0.001924]
[1722136001550,1.54931703,68249.0,68248.0,0.001924]
[1722136001748,1.48888062,68249.0,68248.0,0.001924]
[1722136001945,1.54931702,68249.0,68248.0,0.001924]
[1722136006897,1.52631655,68249.0,68248.0,0.001924]
[1722136007992,1.52608946,68249.0,68248.0,0.001924]
[1722136008202,1.52608946,68249.0,68222.0,0.000924]
[1722136008203,0.32933246,68249.0,68227.0,0.0832]
[1722136008546,0.662167,68228.0,68227.0,0.0832]
[1722136008771,0.75079921,68228.0,68227.0,0.0832]
[1722136008961,1.03280348,68228.0,68227.0,0.0832]
[1722136009354,1.03280348,68228.0,68226.0,0.0618]
[1722136009355,0.586277,68227.0,68226.0,0.0618]